fUSD/lending_fUSD_20251012
["ID","MTS","AMOUNT","RATE_DAILY","PERIOD"]
[390979742,1760259862942,-207.4,0.00038629,30]
[390979743,1760259862978,-151.0,0.00038629,30]
[390979744,1760259863015,-1000.0,0.00038629,30]
[390979745,1760259863053,-215.0738,0.00038629,30]
[390979746,1760259863092,-1000.0,0.00038629,30]
[390979747,1760259863127,-1000.0,0.00038629,30]
[390979748,1760259863163,-151.0,0.00038629,30]
[390979749,1760259863199,-1066.01818596,0.00038629,30]
[390979750,1760259863235,-223.0315306,0.00038629,30]
[390979751,1760259863272,-1000.0,0.00038629,30]
[390979752,1760259863308,-151.0,0.00038629,30]
[390979753,1760259863344,-1000.0,0.00038629,30]
[390979754,1760259863379,-231.28369723,0.00038629,30]
[390979755,1760259863866,-1000.0,0.00038629,30]
[390979756,1760259863904,-151.0,0.00038629,30]
[390979757,1760259863942,-1000.0,0.00038629,30]
[390979758,1760259863981,-239.84119403,0.00038629,30]
[390979759,1760259864020,-151.0,0.00038629,30]
[390979760,1760259864060,-500.0,0.00038629,30]
[390979761,1760259864099,-248.71531821,0.00038629,30]
[390979762,1760259864141,-151.0,0.00038629,30]
[390979763,1760259864183,-500.0,0.00038629,30]
[390979764,1760259864228,-151.0,0.00038629,30]
[390979765,1760259864269,-500.0,0.00038629,30]
[390979766,1760259864313,-500.0,0.00038629,30]
[390979767,1760259864352,-500.0,0.00038629,30]
[390979768,1760259864391,-500.0,0.00038629,30]
[390979769,1760259864430,-500.0,0.00038629,30]
[390979770,1760259864466,-500.0,0.00038629,30]
[390979771,1760259864500,-500.0,0.00038629,30]
[390979772,1760259864534,-500.0,0.00038629,30]
[390979773,1760259864568,-500.0,0.00038629,30]
[390979774,1760259864602,-500.0,0.00038629,30]
[390979775,1760259864636,-500.0,0.00038629,30]
[390979776,1760259864669,-500.0,0.00038629,30]
[390979777,1760259864705,-500.0,0.00038629,30]
[390979778,1760259864740,-500.0,0.00038629,30]
[390979779,1760259864775,-510.51338756,0.00038629,30]
[390979780,1760259864809,-300.0,0.00038629,30]
[390979781,1760259864842,-500.0,0.00038629,30]
[390979782,1760259864878,-500.0,0.00038629,30]
[390979783,1760259864915,-509.48659103,0.00038629,30]
[390979784,1760259864949,-220.0,0.00038629,30]
[390979785,1760259864987,-25000.0,0.00038646,60]
[390979786,1760259865022,-25000.0,0.00038646,60]
[390979787,1760259865056,-25000.0,0.00038646,60]
[390979788,1760259865090,-25000.0,0.00038646,60]
[390979789,1760259865124,-25000.0,0.00038646,60]
[390979790,1760259865160,-25000.0,0.00038646,60]
[390979791,1760259865195,-25000.0,0.00038646,60]
[390979792,1760259865233,-25000.0,0.00038646,60]
[390979793,1760259865268,-20861.03277396,0.00038646,60]
[390979794,1760259865305,-8927.39632296,0.00038646,60]
[390979795,1760259865340,-24883.75329257,0.00038646,60]
[390979796,1760259865376,-6127.21930837,0.00038646,60]
[390979797,1760259865412,-20000.0,0.0003868,120]
[390979798,1760259865447,-1338.08587,0.00038688,30]
[390979799,1760259865481,-4000.0,0.00038789,60]
[390979800,1760259865514,-3775.47472788,0.000388,60]
[390979801,1760259865547,-1244.24424395,0.000388,120]
[390979802,1760259865587,-152.0,0.000388,120]
[390979803,1760259865627,-4404.98,0.000388,120]
[390979804,1760259865662,-500.0,0.00038874,120]
[390979805,1760259865697,-500.0,0.00038904,30]
[390979806,1760259865736,-150.0,0.00038981,120]
[390979807,1760259865774,-67496.91323349,0.0003899,120]
[390979808,1760259865812,-100000.0,0.00039,120]
[390979809,1760259865855,-100000.0,0.00039,120]
[390979810,1760259865892,-100000.0,0.00039,120]
[390979811,1760259865930,-100000.0,0.00039,120]
[390979812,1760259865967,-100000.0,0.00039,120]
[390979813,1760259866007,-100000.0,0.00039,120]
[390979814,1760259866048,-100000.0,0.00039,120]
[390979815,1760259866088,-100000.0,0.00039,120]
[390979816,1760259866126,-100000.0,0.00039,120]
[390979817,1760259866164,-100000.0,0.00039,120]
[390979818,1760259866205,-100000.0,0.00039,120]
[390979819,1760259866244,-100000.0,0.00039,120]
[390979820,1760259866282,-100000.0,0.00039,120]
[390979821,1760259866321,-100000.0,0.00039,120]
[390979822,1760259866363,-100000.0,0.00039,120]
[390979823,1760259866403,-100000.0,0.00039,120]
[390979824,1760259866442,-100000.0,0.00039,120]
[390979825,1760259866480,-100000.0,0.00039,120]
[390979826,1760259866518,-100000.0,0.00039,120]
[390979827,1760259866552,-811.97933058,0.00039,120]
[390979828,1760259866587,-984.405844,0.00039,120]
[390979829,1760259866622,-2571.67330376,0.00039,120]
[390979830,1760259866659,-232829.1550853,0.00039,120]
[390979831,1760259866695,-27000.0,0.00039,30]
[390979832,1760259866732,-1499.85153036,0.00039,120]
[390979833,1760259866770,-50000.0,0.00039,120]
[390979834,1760259866806,-300.0,0.00039,120]
[390979835,1760259866843,-10000.0,0.00039,120]
[390979836,1760259866877,-214.73265225,0.00039,120]
[390979837,1760259866916,-28054.44872206,0.00039,120]
[390979838,1760259866963,-1956.66594027,0.00039,120]
[390979839,1760259867000,-2000.0,0.00039,120]
[390979840,1760259867036,-85332.51586042,0.00039,120]
[390979841,1760259867071,-20519.81555089,0.00039,60]
[390979842,1760259867106,-36401.0,0.00039,120]
[390979843,1760259867142,-3885.07,0.00039041,120]
[390979844,1760259867178,-1167.95134732,0.00039041,30]
[390979845,1760259867212,-1338.08587,0.00039088,30]
[390979846,1760259867247,-173.0,0.000391,120]
[390979847,1760259867281,-500.0,0.00039178,30]
[390979848,1760259867314,-1444.0,0.00039178,30]
[390979849,1760259867347,-9000.0,0.00039178,120]
[390979850,1760259867382,-500.0,0.00039232,60]
[390979851,1760259867416,-11792.0,0.00039263,117]
[390979852,1760259867450,-1338.08587,0.00039288,30]
[390979853,1760259867484,-1468.32,0.000393,120]
[390979854,1760259867518,-81349.82237255,0.000393,120]
[390979855,1760259867552,-10000.0,0.0003935,45]
[390979856,1760259867592,-150.0,0.00039403,120]
[390979857,1760259867626,-500.0,0.00039452,30]
[390979858,1760259868081,-9000.0,0.00039452,120]
[390979859,1760259868116,-1338.08587,0.00039488,30]
[390979860,1760259868150,-869.0,0.0003949,120]
[390979861,1760259868184,-37486.42851845,0.000395,120]
[390979862,1760259868218,-98668.59313992,0.000395,120]
[390979863,1760259868253,-100000.0,0.000396,90]
[390979864,1760259868288,-150.0,0.00039609,120]
[390979865,1760259868321,-150.0,0.00039673,120]
[390979866,1760259868352,-1338.08587,0.00039688,30]
[390979867,1760259868388,-317.27,0.000397,30]
[390979868,1760259868419,-129953.0,0.000397,120]
[390979869,1760259868452,-1207.05738,0.000397,120]
[390979870,1760259868484,-500.0,0.00039726,30]
[390979871,1760259868517,-3885.07,0.00039726,120]
[390979872,1760259868553,-6648.8,0.00039726,120]
[390979873,1760259868590,-150.0,0.00039785,120]
[390979874,1760259868625,-15124.19685032,0.000398,120]
[390979875,1760259868657,-173.0,0.000398,120]
[390979876,1760259868690,-152.0,0.000398,120]
[390979877,1760259868726,-150.0,0.00039818,120]
[390979878,1760259868762,-2560.0,0.00039863,120]
[390979879,1760259868795,-1338.08587,0.00039888,30]
[390979880,1760259868827,-12036.4078981,0.000399,30]
[390979881,1760259868859,-5000.0,0.000399,120]
[390979882,1760259868891,-75568.1435633,0.000399,120]
[390979883,1760259868924,-1322.13397575,0.000399,120]
[390979884,1760259868968,-279.61892595,0.000399,120]
[390979885,1760259869007,-500.0,0.00039984,120]
[390979886,1760259869045,-100000.0,0.00039999,90]
[390979887,1760259869080,-155199.79846644,0.0004,30]
[390979888,1760259869114,-4846.82469077,0.0004,30]
[390979889,1760259869147,-477.12749073,0.0004,30]
[390979890,1760259869189,-204.35423474,0.0004,30]
[390979891,1760259869228,-500.0,0.0004,30]
[390979892,1760259869260,-13199.03872873,0.0004,30]
[390979893,1760259878147,-220000.0,0.00038041,30]
[390979894,1760259878187,-24675.69532722,0.0004,30]
[390979895,1760259878223,-2355.94234125,0.0004,30]
[390979896,1760259878260,-127758.6665542,0.0004,30]
[390979897,1760259878296,-16838.0,0.0004,30]
[390979898,1760259878332,-172383.38857449,0.0004,30]
[390979899,1760259878366,-567.38597242,0.0004,30]
[390979900,1760259878400,-2500.0,0.0004,30]
[390979901,1760259878434,-14424.22683169,0.0004,30]
[390979902,1760259878468,-715631.21,0.0004,30]
[390979903,1760259878501,-280000.0,0.0004,30]
[390979904,1760259878535,-40868.84435942,0.0004,30]
[390979905,1760259878569,-698.9541598,0.0004,120]
[390979906,1760259878603,-100000.0,0.0004,120]
[390979907,1760259878635,-100000.0,0.0004,120]
[390979908,1760259878668,-100000.0,0.0004,120]
[390979909,1760259878700,-3245.4951422,0.0004,120]
[390979910,1760259878734,-76693.4107483,0.0004,120]
[390979911,1760259878769,-2606.93608907,0.0004,90]
[390979912,1760259878804,-100000.19276716,0.0004,120]
[390979913,1760259878839,-1521.2107355,0.0004,120]
[390979914,1760259878874,-10000.0,0.0004,120]
[390979915,1760259878917,-10000.0,0.0004,120]
[390979916,1760259878957,-2649.05451676,0.0004,120]
[390979917,1760259878993,-3200.0,0.0004,120]
[390979918,1760259879030,-4741.21260017,0.0004,120]
[390979919,1760259879066,-1740.20168232,0.0004,120]
[390979920,1760259879102,-812.59004529,0.0004,120]
[390979921,1760259879139,-1455.92140719,0.0004,120]
[390979922,1760259879179,-1328.8824321,0.0004,120]
[390979923,1760259879217,-518.8422484,0.0004,120]
[390979924,1760259879255,-1094.62275901,0.0004,120]
[390979925,1760259879294,-1087.04455997,0.0004,120]
[390979926,1760259879330,-5132.50030953,0.0004,120]
[390979927,1760259879365,-55380.48188597,0.0004,120]
[390979928,1760259879398,-292.5791,0.0004,120]
[390979929,1760259879432,-2000.0,0.0004,120]
[390979930,1760259879466,-1500.0,0.0004,120]
[390979931,1760259879499,-50253.61609862,0.0004,120]
[390979932,1760259879531,-44850.98,0.0004,30]
[390979933,1760259879562,-35488.2639735,0.0004,30]
[390979934,1760259879593,-309871.48528544,0.0004,120]
[390979935,1760259879624,-7246.71158224,0.0004,120]
[390979936,1760259879655,-50000.0,0.0004,120]
[390979937,1760259879686,-11574.28099018,0.0004,30]
[390979938,1760259879719,-10597.65310195,0.0004,120]
[390979939,1760259879752,-30000.0,0.0004,120]
[390979940,1760259879786,-20000.0,0.0004,120]
[390979941,1760259879819,-289.0,0.0004,120]
[390979942,1760259879851,-20144.45238403,0.0004,120]
[390979943,1760259879882,-500.0,0.0004,30]
[390979944,1760259879922,-206.31,0.0004,30]
[390979945,1760259879956,-113963.89367866,0.0004,120]
[390979946,1760259879990,-250932.11312229,0.0004,120]
[390979947,1760259880026,-11082.90958305,0.0004,120]
[390979948,1760259880061,-20000.0,0.0004,120]
[390979949,1760259880094,-7352.09203581,0.0004,120]
[390979950,1760259880127,-189.78673483,0.0004,120]
[390979951,1760259880161,-2000.0,0.0004,120]
[390979952,1760259880192,-454.20033584,0.0004,120]
[390979953,1760259880224,-6421.93,0.0004,30]
[390979954,1760259880257,-499.999999,0.0004,30]
[390979955,1760259880290,-2500.0,0.0004,120]
[390979956,1760259880707,-2500.0,0.0004,120]
[390979957,1760259880745,-2500.0,0.0004,120]
[390979958,1760259880781,-2500.0,0.0004,120]
[390979959,1760259880816,-2500.0,0.0004,120]
[390979960,1760259880849,-2500.0,0.0004,120]
[390979961,1760259880883,-224.61,0.0004,120]
[390979962,1760259880919,-2000.0,0.0004,120]
[390979963,1760259880952,-869.78611063,0.0004,120]
[390979964,1760259880985,-934.0,0.0004,90]
[390979965,1760259881017,-579.0,0.0004,90]
[390979966,1760259881049,-475.28169836,0.0004,30]
[390979967,1760259881080,-150.0,0.0004,30]
[390979968,1760259881113,-150.0,0.0004,120]
[390979969,1760259881147,-150.0,0.0004,120]
[390979970,1760259881179,-150.0,0.0004,120]
[390979971,1760259881212,-3500.0,0.0004,120]
[390979972,1760259881244,-150.0,0.0004,120]
[390979973,1760259881277,-150.0,0.0004,120]
[390979974,1760259881309,-8720.0,0.0004,120]
[390979975,1760259881342,-1338.08587,0.00040088,30]
[390979976,1760259881373,-715.97079171,0.00040114,60]
[390979977,1760259881405,-150.0,0.00040137,120]
[390979978,1760259881438,-579.0,0.00040174,90]
[390979979,1760259881469,-6699.89,0.0004018,90]
[390979980,1760259881499,-500.0,0.00040273,30]
[390979981,1760259881530,-10000.0,0.00040274,120]
[390979982,1760259881562,-1338.08587,0.00040288,30]
[390979983,1760259881595,-150.0,0.00040384,120]
[390979984,1760259881626,-403815.7279869,0.000404,120]
[390979985,1760259881659,-3885.07,0.0004041,120]
[390979986,1760259881691,-10000.0,0.00040466,120]
[390979987,1760259881724,-1338.08587,0.00040488,30]
[390979988,1760259881757,-5034.0,0.000405,120]
[390979989,1760259881790,-173.0,0.000405,120]
[390979990,1760259881821,-2500.0,0.000405,120]
[390979991,1760259881853,-2500.0,0.000405,120]
[390979992,1760259881886,-2500.0,0.000405,120]
[390979993,1760259881921,-2500.0,0.000405,120]
[390979994,1760259881955,-2500.0,0.000405,120]
[390979995,1760259881990,-934.0,0.00040522,90]
[390979996,1760259882024,-500.0,0.00040547,30]
[390979997,1760259882061,-10000.0,0.00040548,120]
[390979998,1760259882095,-150.0,0.00040552,120]
[390979999,1760259882130,-563.65464802,0.000406,120]
[390980000,1760259882167,-1338.08587,0.00040688,30]
[390980001,1760259882198,-2000.0,0.000407,120]
[390980002,1760259882230,-934.0,0.00040795,90]
[390980003,1760259882262,-191.33231673,0.000408,60]
[390980004,1760259882294,-152.0,0.000408,120]
[390980005,1760259882326,-500.0,0.00040821,30]
[390980006,1760259882359,-10000.0,0.00040822,120]
[390980007,1760259882390,-1338.08587,0.00040888,30]
[390980008,1760259882420,-30252.23058988,0.000409,120]
[390980009,1760259882452,-240103.8444529,0.00040998,60]
[390980010,1760259888201,-150.0,0.0004,30]
[390980011,1760259888237,-1859317.24603703,0.00040998,60]
[390980012,1760259888272,-100713.91271437,0.00040998,60]
[390980013,1760259888306,-200000.0,0.00041,30]
[390980014,1760259888339,-10000.0,0.00041,30]
[390980015,1760259888370,-2613.27977264,0.00041,120]
[390980016,1760259888402,-2000.0,0.00041,120]
[390980017,1760259888433,-150.25570632,0.00041,30]
[390980018,1760259888465,-200.0,0.00041,120]
[390980019,1760259888496,-7268.0,0.00041,120]
[390980020,1760259888528,-20000.0,0.00041,120]
[390980021,1760259888558,-25000.0,0.00041,120]
[390980022,1760259888590,-97410.66168278,0.00041,120]
[390980023,1760259888621,-243.51989389,0.00041,120]
[390980024,1760259888651,-500.0,0.00041,120]
[390980025,1760259888683,-5020.0,0.00041,120]
[390980026,1760259888719,-10000.0,0.00041,120]
[390980027,1760259888752,-338.46065105,0.00041,30]
[390980028,1760259888785,-22000.99527913,0.00041,120]
[390980029,1760259888823,-2500.0,0.00041,120]
[390980030,1760259888858,-2500.0,0.00041,120]
[390980031,1760259888896,-2500.0,0.00041,120]
[390980032,1760259888955,-2500.0,0.00041,120]
[390980033,1760259889003,-2500.0,0.00041,120]
[390980034,1760259889400,-36401.0,0.00041,120]
[390980035,1760259889524,-1327.1,0.00041041,120]
[390980036,1760259889559,-1327.1,0.00041041,120]
[390980037,1760259889591,-1327.1,0.00041041,120]
[390980038,1760259889623,-1327.1,0.00041041,120]
[390980039,1760259889655,-2000.0,0.00041053,120]
[390980040,1760259889686,-934.0,0.00041069,90]
[390980041,1760259889728,-1338.08587,0.00041088,30]
[390980042,1760259889762,-568.994376,0.00041093,120]
[390980043,1760259889802,-500.0,0.00041095,30]
[390980044,1760259889846,-1000.0,0.00041095,30]
[390980045,1760259889883,-629.75676707,0.00041095,30]
[390980046,1760259889924,-1448.5,0.00041095,120]
[390980047,1760259889961,-1448.5,0.00041095,120]
[390980048,1760259889996,-1448.5,0.00041095,120]
[390980049,1760259890032,-1448.5,0.00041095,120]
[390980050,1760259890067,-1448.5,0.00041095,120]
[390980051,1760259890102,-1448.5,0.00041095,120]
[390980052,1760259890138,-1448.5,0.00041095,120]
[390980053,1760259890173,-1448.5,0.00041095,120]
[390980054,1760259890210,-1448.5,0.00041095,120]
[390980055,1760259890244,-1448.5,0.00041095,120]
[390980056,1760259890281,-1448.5,0.00041095,120]
[390980057,1760259890316,-1448.5,0.00041095,120]
[390980058,1760259890357,-1448.5,0.00041095,120]
[390980059,1760259890393,-1448.5,0.00041095,120]
[390980060,1760259890429,-1448.5,0.00041095,120]
[390980061,1760259890469,-1448.5,0.00041095,120]
[390980062,1760259890504,-1448.5,0.00041095,120]
[390980063,1760259890539,-1448.5,0.00041095,120]
[390980064,1760259890574,-1448.5,0.00041095,120]
[390980065,1760259890607,-1448.5,0.00041095,120]
[390980066,1760259890642,-1448.5,0.00041095,120]
[390980067,1760259890674,-1448.5,0.00041095,120]
[390980068,1760259890707,-1448.5,0.00041095,120]
[390980069,1760259890742,-1448.67837048,0.00041095,120]
[390980070,1760259890778,-3885.07,0.00041095,120]
[390980071,1760259890812,-20000.0,0.00041096,120]
[390980072,1760259890847,-3219.05,0.00041096,120]
[390980073,1760259890881,-500.0,0.00041096,30]
[390980074,1760259890919,-500.0,0.00041096,30]
[390980075,1760259890955,-500.0,0.00041096,30]
[390980076,1760259890994,-500.0,0.00041096,30]
[390980077,1760259891030,-500.0,0.00041096,30]
[390980078,1760259891064,-500.0,0.00041096,30]
[390980079,1760259891098,-500.0,0.00041096,30]
[390980080,1760259891131,-500.0,0.00041096,30]
[390980081,1760259891164,-500.0,0.00041096,30]
[390980082,1760259891199,-500.0,0.00041096,30]
[390980083,1760259891232,-500.0,0.00041096,30]
[390980084,1760259891265,-500.0,0.00041096,30]
[390980085,1760259891298,-500.0,0.00041096,30]
[390980086,1760259891332,-500.0,0.00041096,30]
[390980087,1760259891364,-500.0,0.00041096,30]
[390980088,1760259891396,-500.0,0.00041096,30]
[390980089,1760259891429,-500.0,0.00041096,30]
[390980090,1760259891464,-500.0,0.00041096,30]
[390980091,1760259891499,-500.0,0.00041096,30]
[390980092,1760259891532,-500.0,0.00041096,30]
[390980093,1760259891564,-500.0,0.00041096,30]
[390980094,1760259891596,-500.0,0.00041096,30]
[390980095,1760259891628,-500.0,0.00041096,30]
[390980096,1760259891659,-500.0,0.00041096,30]
[390980097,1760259891705,-500.0,0.00041096,30]
[390980098,1760259891740,-500.0,0.00041096,30]
[390980099,1760259891774,-500.0,0.00041096,30]
[390980100,1760259891808,-500.0,0.00041096,30]
[390980101,1760259891844,-500.0,0.00041096,30]
[390980102,1760259891878,-500.0,0.00041096,30]
[390980103,1760259891915,-500.0,0.00041096,30]
[390980104,1760259891953,-500.0,0.00041096,30]
[390980105,1760259891987,-368.0,0.00041096,30]
[390980106,1760259892021,-500.0,0.00041096,30]
[390980107,1760259892054,-500.0,0.00041096,30]
[390980108,1760259892086,-500.0,0.00041096,30]
[390980109,1760259892117,-500.0,0.00041096,30]
[390980110,1760259892150,-500.0,0.00041096,30]
[390980111,1760259892183,-500.0,0.00041096,30]
[390980112,1760259892218,-500.0,0.00041096,30]
[390980113,1760259892259,-500.0,0.00041096,30]
[390980114,1760259892292,-500.0,0.00041096,30]
[390980115,1760259892327,-500.0,0.00041096,30]
[390980116,1760259892360,-500.0,0.00041096,30]
[390980117,1760259892395,-500.0,0.00041096,30]
[390980118,1760259892430,-500.0,0.00041096,30]
[390980119,1760259892465,-500.0,0.00041096,30]
[390980120,1760259892499,-500.0,0.00041096,30]
[390980121,1760259892532,-500.0,0.00041096,30]
[390980122,1760259892565,-500.0,0.00041096,30]
[390980123,1760259892599,-500.0,0.00041096,30]
[390980124,1760259892635,-500.0,0.00041096,30]
[390980125,1760259892669,-500.0,0.00041096,30]
[390980126,1760259892704,-500.0,0.00041096,30]
[390980127,1760259892741,-500.0,0.00041096,30]
[390980128,1760259892778,-500.0,0.00041096,30]
[390980129,1760259892816,-500.0,0.00041096,30]
[390980130,1760259892858,-500.0,0.00041096,30]
[390980131,1760259892897,-500.0,0.00041096,30]
[390980132,1760259892935,-500.0,0.00041096,30]
[390980133,1760259892974,-500.0,0.00041096,30]
[390980134,1760259893010,-500.0,0.00041096,30]
[390980135,1760259893527,-500.0,0.00041096,30]
[390980136,1760259893565,-500.0,0.00041096,30]
[390980137,1760259893599,-500.0,0.00041096,30]
[390980138,1760259893633,-500.0,0.00041096,30]
[390980139,1760259893668,-500.0,0.00041096,30]
[390980140,1760259893701,-500.0,0.00041096,30]
[390980141,1760259893736,-500.0,0.00041096,30]
[390980142,1760259893773,-500.0,0.00041096,30]
[390980143,1760259893898,854.44,0.0002875,30]
[390980144,1760259895337,854.44,0.00031,30]
[390980145,1760259895387,854.44,0.0003325,30]
[390980146,1760259895433,854.44,0.000355,60]
[390980147,1760259895474,854.44,0.0003775,60]
[390980148,1760259895525,854.44,0.0004,60]
[390980149,1760259895690,139815.81602849,0.00041096,30]
[390980150,1760259904109,300.0,0.0003904,93]
[390980151,1760259907129,300.0,0.0003904,93]
[390980191,1760260074063,10000.0,0.00027397,120]
[390980192,1760260117754,6164.0,0.00027397,120]
[390980208,1760260232197,-188.95,0.00013906,2]
[390980209,1760260232207,-1000.0,0.000146,2]
[390980210,1760260232216,-6.60270666,0.00014664,2]
[390980211,1760260232225,-265.0,0.00014742,2]
[390980212,1760260232235,-265.0,0.0001477,2]
[390980213,1760260232245,-199.39874386,0.00014786,2]
[390980214,1760260232257,-275.59827189,0.00014786,2]
[390980215,1760260232269,-25.00298425,0.00014786,2]
[390980216,1760260232278,-200.0,0.00014786,2]
[390980217,1760260232287,-334.6009,0.00014799,2]
[390980218,1760260232297,-530.39611575,0.00014818,2]
[390980219,1760260232312,-199.59669155,0.00014818,2]
[390980220,1760260232321,-729.99280728,0.00014827,2]
[390980221,1760260232330,-729.99280728,0.00014836,2]
[390980222,1760260232339,-265.0,0.00014837,2]
[390980223,1760260232349,-729.99280728,0.00014845,2]
[390980224,1760260232358,-1200.0,0.00014853,2]
[390980225,1760260232367,-729.99280728,0.00014854,2]
[390980226,1760260232377,-729.99280728,0.00014864,2]
[390980227,1760260232387,-300.0,0.00014872,2]
[390980228,1760260232396,-101.16244794,0.00014873,2]
[390980229,1760260232407,-334.33830891,0.00014873,2]
[390980230,1760260232423,-564.49924315,0.00014873,2]
[390980231,1760260232433,-729.99280728,0.00014873,2]
[390980232,1760260232443,-2500.0,0.0001488,2]
[390980233,1760260232453,-5000.0,0.0001488,2]
[390980234,1760260232462,-1744.44195965,0.0001488,2]
[390980235,1760260232472,-334.57271494,0.0001488,2]
[390980236,1760260232481,-729.99280728,0.00014882,2]
[390980237,1760260232492,-1744.44195961,0.00014882,2]
[390980238,1760260232501,-334.57271494,0.00014882,2]
[390980239,1760260232510,-1744.44195961,0.00014884,2]
[390980240,1760260232519,-334.57271494,0.00014884,2]
[390980243,1760260232529,-1744.44195961,0.00014887,2]
[390980244,1760260232538,-334.57271494,0.00014887,2]
[390980246,1760260232548,-150.0,0.00014888,2]
[390980247,1760260232557,-1744.44195961,0.00014889,2]
[390980248,1760260232566,-334.57271494,0.00014889,2]
[390980249,1760260232575,-729.99280728,0.00014891,2]
[390980250,1760260232585,-1744.44195961,0.00014891,2]
[390980251,1760260232593,-334.57271494,0.00014891,2]
[390980252,1760260232603,-161.68846782,0.00014892,2]
[390980253,1760260232612,-1744.44195961,0.00014893,2]
[390980254,1760260232621,-334.57271494,0.00014893,2]
[390980255,1760260232631,-420.3576016,0.00014895,2]
[390980257,1760260232641,-1744.44195961,0.00014896,2]
[390980259,1760260232651,-420.35760157,0.00014896,2]
[390980261,1760260232660,-420.35760157,0.00014898,2]
[390980263,1760260232670,-1744.44195961,0.00014898,2]
[390980265,1760260232680,-420.35760157,0.00014899,2]
[390980267,1760260232691,-201.40321878,0.00014899,2]
[390980268,1760260232702,-181.35281432,0.00014899,2]
[390980269,1760260232713,-26343.21439396,0.000149,2]
[390980270,1760260232723,-6136.8524434,0.000149,2]
[390980271,1760260232734,-6320.5623637,0.000149,2]
[390980272,1760260232744,-420.35760157,0.000149,2]
[390980273,1760260232754,-1783.14,0.000149,2]
[390980274,1760260232764,-150.45577131,0.000149,2]
[390980275,1760260232773,-150.0,0.000149,2]
[390980276,1760260232782,-150.0,0.000149,2]
[390980277,1760260232790,-150.63534201,0.000149,2]
[390980278,1760260232799,-155.46362373,0.000149,2]
[390980279,1760260232807,-150.0,0.000149,2]
[390980280,1760260232816,-150.08622419,0.000149,2]
[390980281,1760260232825,-150.0,0.000149,2]
[390980282,1760260232834,-150.78303319,0.000149,2]
[390980283,1760260232843,-150.0,0.000149,2]
[390980284,1760260232853,-55555.0,0.000149,2]
[390980285,1760260232867,-500.0,0.000149,2]
[390980286,1760260232877,-500.0,0.000149,2]
[390980287,1760260232886,-150.0,0.000149,2]
[390980288,1760260232895,-500.0,0.000149,2]
[390980289,1760260232905,-150.0,0.000149,2]
[390980290,1760260232915,-150.0,0.000149,2]
[390980291,1760260232924,-150.0,0.000149,2]
[390980292,1760260232934,-150.0,0.000149,2]
[390980293,1760260232943,-150.0,0.000149,2]
[390980294,1760260232953,-500.0,0.000149,2]
[390980295,1760260232963,-504.62408704,0.000149,2]
[390980296,1760260232973,-150.0,0.000149,2]
[390980297,1760260232983,-154.70086544,0.000149,2]
[390980298,1760260232993,-500.0,0.000149,2]
[390980299,1760260233003,-150.0,0.000149,2]
[390980300,1760260233013,-500.0,0.000149,2]
[390980301,1760260233022,-1744.44195961,0.000149,2]
[390980302,1760260233031,-150.0,0.000149,2]
[390980303,1760260233041,-150.0,0.000149,2]
[390980304,1760260233051,-150.0,0.000149,2]